[Event "Titled Tuesday Blitz November 01 Late 2022"]
[White "Naroditsky, Daniel"]
[Black "Boruchovsky, Avital"]
[WhiteFideId "2026961"]
[BlackFideId "2800055"]
[WhiteElo "3114"]
[BlackElo "2832"]
[Result "0-1"]
[Round "03"]
[TimeControl "180+1"]
[Date "2022.11.01"]
[WhiteClock "0:00:52"]
[BlackClock "0:00:04"]

1. d4 {[%clk 0:03:00]}  d5 {[%clk 0:02:58]} 2. Nc3 {[%clk 0:03:00]}  e6 {[%clk 0:02:53]} 3. e4 {[%clk 0:02:59]}  Bb4 {[%clk 0:02:50]} 4. exd5 {[%clk 0:02:56]}  exd5 {[%clk 0:02:50]} 5. Bd3 {[%clk 0:02:57]}  Nc6 {[%clk 0:02:45]} 6. a3 {[%clk 0:02:55]}  Bxc3+ {[%clk 0:02:45]} 7. bxc3 {[%clk 0:02:55]}  Nge7 {[%clk 0:02:45]} 8. Qf3 {[%clk 0:02:51]}  Be6 {[%clk 0:02:42]} 9. Ne2 {[%clk 0:02:51]}  Qd7 {[%clk 0:02:41]} 10. Nf4 {[%clk 0:02:50]}  Bf5 {[%clk 0:02:21]} 11. O-O {[%clk 0:02:47]}  O-O-O {[%clk 0:02:15]} 12. Rb1 {[%clk 0:02:43]}  g5 {[%clk 0:01:59]} 13. Ne2 {[%clk 0:02:30]}  f6 {[%clk 0:01:39]} 14. Ng3 {[%clk 0:02:23]}  Bxd3 {[%clk 0:01:39]} 15. cxd3 {[%clk 0:02:16]}  Rhf8 {[%clk 0:01:39]} 16. a4 {[%clk 0:02:12]}  g4 {[%clk 0:01:31]} 17. Qd1 {[%clk 0:02:08]}  Ng6 {[%clk 0:01:29]} 18. Qb3 {[%clk 0:02:05]}  Na5 {[%clk 0:01:25]} 19. Qb4 {[%clk 0:02:04]}  b6 {[%clk 0:01:25]} 20. Nh5 {[%clk 0:01:55]}  Qf5 {[%clk 0:01:17]} 21. Ng7 {[%clk 0:01:55]}  Qd7 {[%clk 0:01:17]} 22. Bh6 {[%clk 0:01:52]}  Rf7 {[%clk 0:01:14]} 23. Nh5 {[%clk 0:01:40]}  Qf5 {[%clk 0:01:14]} 24. Ng7 {[%clk 0:01:40]}  Qxd3 {[%clk 0:01:14]} 25. Rfe1 {[%clk 0:01:35]}  Qc4 {[%clk 0:00:49]} 26. Qb2 {[%clk 0:01:34]}  f5 {[%clk 0:00:41]} 27. Qc2 {[%clk 0:01:25]}  f4 {[%clk 0:00:39]} 28. Ne6 {[%clk 0:01:18]}  Re8 {[%clk 0:00:35]} 29. Ng5 {[%clk 0:01:11]}  Rfe7 {[%clk 0:00:33]} 30. Rxe7 {[%clk 0:01:08]}  Rxe7 {[%clk 0:00:34]} 31. Nxh7 {[%clk 0:01:08]}  Qe2 {[%clk 0:00:23]} 32. Qxe2 {[%clk 0:01:08]}  Rxe2 {[%clk 0:00:24]} 33. Nf6 {[%clk 0:01:09]}  g3 {[%clk 0:00:15]} 34. hxg3 {[%clk 0:01:08]}  fxg3 {[%clk 0:00:16]} 35. fxg3 {[%clk 0:01:08]}  Nc4 {[%clk 0:00:17]} 36. Nxd5 {[%clk 0:01:05]}  Ra2 {[%clk 0:00:16]} 37. Rf1 {[%clk 0:01:04]}  Kd7 {[%clk 0:00:10]} 38. Rf6 {[%clk 0:01:03]}  c6 {[%clk 0:00:07]} 39. Nxb6+ {[%clk 0:00:58]}  axb6 {[%clk 0:00:07]} 40. Rxg6 {[%clk 0:00:59]}  Rxa4 {[%clk 0:00:07]} 41. g4 {[%clk 0:00:59]}  Ra3 {[%clk 0:00:07]} 42. g5 {[%clk 0:00:55]}  Rxc3 {[%clk 0:00:07]} 43. Rf6 {[%clk 0:00:53]}  Nd6 {[%clk 0:00:06]} 44. g6 {[%clk 0:00:53]}  Ne8 {[%clk 0:00:04]} 45. Rf7+ {[%clk 0:00:51]}  Ke6 {[%clk 0:00:05]} 46. g7 {[%clk 0:00:52]}  Kxf7 {[%clk 0:00:04]} 0-1


[Site "https://www.chess.com"]

[Event "Titled Tuesday Blitz November 01 Late 2022"]
[White "Novik, Maxim"]
[Black "Mekhitarian, Krikor Sevag"]
[WhiteFideId "4102924"]
[BlackFideId "2107660"]
[WhiteElo "2312"]
[BlackElo "2614"]
[Result "1-0"]
[Round "03"]
[TimeControl "180+1"]
[Date "2022.11.02"]
[WhiteClock "0:00:25"]
[BlackClock "0:00:01"]

1. e4 {[%clk 0:02:59]}  c6 {[%clk 0:02:54]} 2. d4 {[%clk 0:02:59]}  d5 {[%clk 0:02:54]} 3. exd5 {[%clk 0:02:59]}  cxd5 {[%clk 0:02:51]} 4. Bd3 {[%clk 0:03:00]}  Nc6 {[%clk 0:02:47]} 5. c3 {[%clk 0:03:00]}  Qc7 {[%clk 0:02:42]} 6. h3 {[%clk 0:02:59]}  e5 {[%clk 0:02:41]} 7. dxe5 {[%clk 0:02:59]}  Nxe5 {[%clk 0:02:42]} 8. Nf3 {[%clk 0:02:59]}  Bd6 {[%clk 0:02:33]} 9. Nxe5 {[%clk 0:02:53]}  Bxe5 {[%clk 0:02:32]} 10. O-O {[%clk 0:02:54]}  Nf6 {[%clk 0:02:32]} 11. Nd2 {[%clk 0:02:53]}  O-O {[%clk 0:02:31]} 12. Nf3 {[%clk 0:02:54]}  Bd6 {[%clk 0:02:23]} 13. Be3 {[%clk 0:02:53]}  Bd7 {[%clk 0:02:19]} 14. Re1 {[%clk 0:02:51]}  Rfe8 {[%clk 0:02:19]} 15. Qc2 {[%clk 0:02:48]}  Rac8 {[%clk 0:02:16]} 16. Bd4 {[%clk 0:02:47]}  Ne4 {[%clk 0:02:09]} 17. Bxe4 {[%clk 0:02:46]}  Rxe4 {[%clk 0:02:10]} 18. Rxe4 {[%clk 0:02:46]}  dxe4 {[%clk 0:02:11]} 19. Qxe4 {[%clk 0:02:46]}  Re8 {[%clk 0:02:08]} 20. Qh4 {[%clk 0:02:33]}  f6 {[%clk 0:02:01]} 21. Qh5 {[%clk 0:02:15]}  Qc4 {[%clk 0:01:50]} 22. b3 {[%clk 0:02:10]}  Qd3 {[%clk 0:01:45]} 23. Qd5+ {[%clk 0:02:09]}  Re6 {[%clk 0:01:39]} 24. Re1 {[%clk 0:02:07]}  Qf5 {[%clk 0:01:04]} 25. Qxf5 {[%clk 0:01:52]}  Rxe1+ {[%clk 0:00:58]} 26. Nxe1 {[%clk 0:01:52]}  Bxf5 {[%clk 0:00:59]} 27. Bxa7 {[%clk 0:01:52]}  Bb1 {[%clk 0:00:57]} 28. a4 {[%clk 0:01:50]}  Bf4 {[%clk 0:00:48]} 29. Be3 {[%clk 0:01:46]}  Be5 {[%clk 0:00:49]} 30. Bd4 {[%clk 0:01:45]}  Bf4 {[%clk 0:00:49]} 31. a5 {[%clk 0:01:32]}  Kf7 {[%clk 0:00:48]} 32. Kf1 {[%clk 0:01:31]}  Ke6 {[%clk 0:00:48]} 33. Ke2 {[%clk 0:01:31]}  Ba2 {[%clk 0:00:44]} 34. Nd3 {[%clk 0:01:25]}  Bd6 {[%clk 0:00:41]} 35. b4 {[%clk 0:01:19]}  Bc4 {[%clk 0:00:41]} 36. Ke3 {[%clk 0:01:19]}  Kd5 {[%clk 0:00:41]} 37. Nc1 {[%clk 0:01:02]}  g5 {[%clk 0:00:37]} 38. g3 {[%clk 0:01:00]}  f5 {[%clk 0:00:38]} 39. Ne2 {[%clk 0:00:59]}  h6 {[%clk 0:00:18]} 40. Bg7 {[%clk 0:00:55]}  h5 {[%clk 0:00:16]} 41. Bd4 {[%clk 0:00:49]}  Bc7 {[%clk 0:00:10]} 42. h4 {[%clk 0:00:48]}  f4+ {[%clk 0:00:10]} 43. gxf4 {[%clk 0:00:46]}  gxh4 {[%clk 0:00:10]} 44. Be5 {[%clk 0:00:41]}  Bxe5 {[%clk 0:00:03]} 45. fxe5 {[%clk 0:00:41]}  Kxe5 {[%clk 0:00:04]} 46. Nd4 {[%clk 0:00:36]}  h3 {[%clk 0:00:03]} 47. f4+ {[%clk 0:00:35]}  Kd5 {[%clk 0:00:02]} 48. Nf3 {[%clk 0:00:35]}  Bb3 {[%clk 0:00:01]} 49. f5 {[%clk 0:00:29]}  Bd1 {[%clk 0:00:01]} 50. b5 {[%clk 0:00:25]} 1-0


[Site "https://www.chess.com"]

[Event "Titled Tuesday Blitz November 01 Late 2022"]
[White "Omelja, Artem"]
[Black "Lopez Del Alamo, Antonio"]
[WhiteFideId "14119846"]
[BlackFideId "2227339"]
[WhiteElo "2403"]
[BlackElo "2175"]
[Result "1-0"]
[Round "03"]
[TimeControl "180+1"]
[Date "2022.11.02"]
[WhiteClock "0:00:11"]
[BlackClock "0:00:01"]

1. d4 {[%clk 0:03:00]}  Nf6 {[%clk 0:02:58]} 2. c4 {[%clk 0:02:59]}  g6 {[%clk 0:02:51]} 3. Nc3 {[%clk 0:02:58]}  Bg7 {[%clk 0:02:52]} 4. e4 {[%clk 0:02:58]}  d6 {[%clk 0:02:47]} 5. Nge2 {[%clk 0:02:58]}  O-O {[%clk 0:02:43]} 6. f3 {[%clk 0:02:58]}  c5 {[%clk 0:02:43]} 7. Be3 {[%clk 0:02:57]}  cxd4 {[%clk 0:02:34]} 8. Nxd4 {[%clk 0:02:57]}  Nc6 {[%clk 0:02:34]} 9. Be2 {[%clk 0:02:56]}  Nxd4 {[%clk 0:02:31]} 10. Bxd4 {[%clk 0:02:57]}  a5 {[%clk 0:02:30]} 11. O-O {[%clk 0:02:57]}  Bd7 {[%clk 0:02:17]} 12. Qd2 {[%clk 0:02:51]}  a4 {[%clk 0:02:11]} 13. Rfd1 {[%clk 0:02:42]}  Bc6 {[%clk 0:02:09]} 14. Rac1 {[%clk 0:02:41]}  Qa5 {[%clk 0:01:59]} 15. Kf1 {[%clk 0:02:09]}  Nd7 {[%clk 0:01:45]} 16. Be3 {[%clk 0:01:47]}  Rfc8 {[%clk 0:01:28]} 17. Rc2 {[%clk 0:01:24]}  Nc5 {[%clk 0:01:20]} 18. Bxc5 {[%clk 0:01:14]}  Qxc5 {[%clk 0:01:19]} 19. Rdc1 {[%clk 0:01:12]}  Qh5 {[%clk 0:00:54]} 20. Kg1 {[%clk 0:01:09]}  Bh6 {[%clk 0:00:50]} 21. f4 {[%clk 0:01:07]}  Qc5+ {[%clk 0:00:51]} 22. Kf1 {[%clk 0:01:02]}  e5 {[%clk 0:00:50]} 23. Nd5 {[%clk 0:00:59]}  exf4 {[%clk 0:00:23]} 24. Ne7+ {[%clk 0:00:42]}  Kf8 {[%clk 0:00:21]} 25. Nxc8 {[%clk 0:00:43]}  Rxc8 {[%clk 0:00:20]} 26. Bf3 {[%clk 0:00:41]}  Bg7 {[%clk 0:00:19]} 27. Rd1 {[%clk 0:00:41]}  Be5 {[%clk 0:00:19]} 28. b4 {[%clk 0:00:34]}  axb3 {[%clk 0:00:17]} 29. axb3 {[%clk 0:00:35]}  Qa3 {[%clk 0:00:13]} 30. Qd3 {[%clk 0:00:33]}  Ra8 {[%clk 0:00:06]} 31. h3 {[%clk 0:00:28]}  Qb4 {[%clk 0:00:06]} 32. Rb1 {[%clk 0:00:25]}  Ra3 {[%clk 0:00:05]} 33. Qd2 {[%clk 0:00:20]}  Qc5 {[%clk 0:00:05]} 34. b4 {[%clk 0:00:19]}  Qa7 {[%clk 0:00:06]} 35. b5 {[%clk 0:00:14]}  Bd7 {[%clk 0:00:02]} 36. c5 {[%clk 0:00:14]}  Be6 {[%clk 0:00:01]} 37. cxd6 {[%clk 0:00:11]} 1-0


[Site "https://www.chess.com"]

[Event "Titled Tuesday Blitz November 01 Late 2022"]
[White "Plat, Vojtech"]
[Black "Ozates, Tuna"]
[WhiteFideId "325740"]
[BlackFideId "6354521"]
[WhiteElo "2514"]
[BlackElo "2151"]
[Result "1-0"]
[Round "03"]
[TimeControl "180+1"]
[Date "2022.11.02"]
[WhiteClock "0:01:51"]
[BlackClock "0:00:19"]

1. e4 {[%clk 0:03:00]}  c5 {[%clk 0:02:59]} 2. Nf3 {[%clk 0:03:00]}  Nc6 {[%clk 0:03:00]} 3. c3 {[%clk 0:03:01]}  d5 {[%clk 0:02:56]} 4. exd5 {[%clk 0:03:00]}  Qxd5 {[%clk 0:02:57]} 5. d4 {[%clk 0:03:01]}  Bf5 {[%clk 0:02:54]} 6. Be3 {[%clk 0:02:58]}  cxd4 {[%clk 0:02:50]} 7. Nxd4 {[%clk 0:02:56]}  Nxd4 {[%clk 0:02:50]} 8. Qxd4 {[%clk 0:02:56]}  Qxd4 {[%clk 0:02:49]} 9. Bxd4 {[%clk 0:02:56]}  f6 {[%clk 0:02:38]} 10. Nd2 {[%clk 0:02:51]}  Nh6 {[%clk 0:02:26]} 11. h3 {[%clk 0:02:49]}  e5 {[%clk 0:02:22]} 12. Be3 {[%clk 0:02:48]}  Nf7 {[%clk 0:02:22]} 13. Bb5+ {[%clk 0:02:47]}  Bd7 {[%clk 0:02:22]} 14. a4 {[%clk 0:02:43]}  Nd6 {[%clk 0:02:13]} 15. Bxd7+ {[%clk 0:02:39]}  Kxd7 {[%clk 0:02:14]} 16. O-O-O {[%clk 0:02:38]}  Kc7 {[%clk 0:02:01]} 17. g4 {[%clk 0:02:31]}  Be7 {[%clk 0:01:58]} 18. f4 {[%clk 0:02:30]}  e4 {[%clk 0:01:24]} 19. Bc5 {[%clk 0:02:29]}  Rhe8 {[%clk 0:01:19]} 20. Rhe1 {[%clk 0:02:28]}  g6 {[%clk 0:01:10]} 21. Kc2 {[%clk 0:02:26]}  f5 {[%clk 0:01:11]} 22. Nb3 {[%clk 0:02:11]}  b6 {[%clk 0:01:04]} 23. Bd4 {[%clk 0:02:09]}  Rad8 {[%clk 0:00:59]} 24. Be5 {[%clk 0:02:08]}  Kb7 {[%clk 0:00:54]} 25. Nd4 {[%clk 0:02:01]}  Nc4 {[%clk 0:00:55]} 26. gxf5 {[%clk 0:02:00]}  gxf5 {[%clk 0:00:52]} 27. Nxf5 {[%clk 0:01:59]}  Bh4 {[%clk 0:00:43]} 28. Rxd8 {[%clk 0:01:54]}  Rxd8 {[%clk 0:00:44]} 29. Rxe4 {[%clk 0:01:54]}  Rd2+ {[%clk 0:00:44]} 30. Kc1 {[%clk 0:01:54]}  Rxb2 {[%clk 0:00:19]} 31. Rxc4 {[%clk 0:01:51]} 1-0


[Site "https://www.chess.com"]

[Event "Titled Tuesday Blitz November 01 Late 2022"]
[White "Poliakova, Varvara"]
[Black "Dimitrov, Atanas"]
[WhiteFideId "13518313"]
[BlackFideId "2901315"]
[WhiteElo "1938"]
[BlackElo "2749"]
[Result "1/2-1/2"]
[Round "03"]
[TimeControl "180+1"]
[Date "2022.11.02"]
[WhiteClock "0:01:00"]
[BlackClock "0:00:11"]

1. f4 {[%clk 0:02:56]}  Nf6 {[%clk 0:02:58]} 2. Nf3 {[%clk 0:02:56]}  g6 {[%clk 0:02:57]} 3. g3 {[%clk 0:02:57]}  Bg7 {[%clk 0:02:58]} 4. Bg2 {[%clk 0:02:57]}  O-O {[%clk 0:02:58]} 5. O-O {[%clk 0:02:56]}  c5 {[%clk 0:02:58]} 6. d3 {[%clk 0:02:54]}  d5 {[%clk 0:02:57]} 7. Ne5 {[%clk 0:02:53]}  Nbd7 {[%clk 0:02:52]} 8. Nxd7 {[%clk 0:02:51]}  Bxd7 {[%clk 0:02:52]} 9. e4 {[%clk 0:02:51]}  dxe4 {[%clk 0:02:50]} 10. dxe4 {[%clk 0:02:51]}  Bc6 {[%clk 0:02:46]} 11. Nc3 {[%clk 0:02:51]}  Qd4+ {[%clk 0:02:29]} 12. Kh1 {[%clk 0:02:50]}  Rad8 {[%clk 0:02:28]} 13. Qe2 {[%clk 0:02:50]}  Qb4 {[%clk 0:02:19]} 14. a3 {[%clk 0:02:48]}  Qb6 {[%clk 0:02:20]} 15. g4 {[%clk 0:02:39]}  h5 {[%clk 0:02:09]} 16. g5 {[%clk 0:02:37]}  Nd7 {[%clk 0:02:01]} 17. f5 {[%clk 0:02:36]}  Qc7 {[%clk 0:01:32]} 18. Bf4 {[%clk 0:02:29]}  Be5 {[%clk 0:01:32]} 19. Bxe5 {[%clk 0:02:25]}  Qxe5 {[%clk 0:01:32]} 20. Rae1 {[%clk 0:02:16]}  Nb6 {[%clk 0:01:29]} 21. Rd1 {[%clk 0:01:54]}  Rd4 {[%clk 0:01:24]} 22. Rde1 {[%clk 0:01:52]}  Rfd8 {[%clk 0:01:24]} 23. Qf3 {[%clk 0:01:49]}  gxf5 {[%clk 0:01:06]} 24. Qxf5 {[%clk 0:01:45]}  Qxf5 {[%clk 0:01:05]} 25. exf5 {[%clk 0:01:46]}  Bxg2+ {[%clk 0:01:04]} 26. Kxg2 {[%clk 0:01:47]}  Rd2+ {[%clk 0:01:04]} 27. Rf2 {[%clk 0:01:44]}  Kf8 {[%clk 0:00:54]} 28. Ne4 {[%clk 0:01:38]}  Rxf2+ {[%clk 0:00:52]} 29. Kxf2 {[%clk 0:01:39]}  Rd5 {[%clk 0:00:50]} 30. f6 {[%clk 0:01:37]}  exf6 {[%clk 0:00:48]} 31. gxf6 {[%clk 0:01:38]}  Nc4 {[%clk 0:00:44]} 32. b3 {[%clk 0:01:33]}  Nd6 {[%clk 0:00:43]} 33. Nxd6 {[%clk 0:01:29]}  Rxd6 {[%clk 0:00:44]} 34. Re5 {[%clk 0:01:28]}  Rxf6+ {[%clk 0:00:45]} 35. Ke3 {[%clk 0:01:27]}  Re6 {[%clk 0:00:29]} 36. Rxe6 {[%clk 0:01:23]}  fxe6 {[%clk 0:00:28]} 37. Kf4 {[%clk 0:01:24]}  Kf7 {[%clk 0:00:18]} 38. Kg5 {[%clk 0:01:24]}  b6 {[%clk 0:00:12]} 39. Kxh5 {[%clk 0:01:24]}  Kf6 {[%clk 0:00:13]} 40. Kg4 {[%clk 0:01:24]}  Ke5 {[%clk 0:00:13]} 41. h4 {[%clk 0:01:16]}  Kf6 {[%clk 0:00:11]} 42. Kf4 {[%clk 0:01:16]}  Kg6 {[%clk 0:00:10]} 43. Ke5 {[%clk 0:01:16]}  Kh5 {[%clk 0:00:10]} 44. Kxe6 {[%clk 0:01:17]}  Kxh4 {[%clk 0:00:11]} 45. Kd5 {[%clk 0:01:17]}  Kg4 {[%clk 0:00:11]} 46. Kc6 {[%clk 0:01:18]}  Kf3 {[%clk 0:00:12]} 47. Kb7 {[%clk 0:01:19]}  Ke3 {[%clk 0:00:12]} 48. Kxa7 {[%clk 0:01:19]}  Kd2 {[%clk 0:00:13]} 49. Kxb6 {[%clk 0:01:20]}  Kxc2 {[%clk 0:00:14]} 50. a4 {[%clk 0:00:59]}  Kxb3 {[%clk 0:00:11]} 51. a5 {[%clk 0:01:00]}  c4 {[%clk 0:00:11]} 52. a6 {[%clk 0:01:00]}  c3 {[%clk 0:00:11]} 53. a7 {[%clk 0:01:01]}  c2 {[%clk 0:00:12]} 54. a8=Q {[%clk 0:01:02]}  c1=Q {[%clk 0:00:12]} 55. Qd5+ {[%clk 0:01:00]}  Qc4 {[%clk 0:00:10]} 56. Qxc4+ {[%clk 0:01:00]}  Kxc4 {[%clk 0:00:11]} 1/2-1/2


[Site "https://www.chess.com"]

[Event "Titled Tuesday Blitz November 01 Late 2022"]
[White "Poltorak, Sebastian"]
[Black "Pakleza, Zbigniew"]
[WhiteFideId "1199498"]
[BlackFideId "1119290"]
[WhiteElo "2232"]
[BlackElo "2411"]
[Result "0-1"]
[Round "03"]
[TimeControl "180+1"]
[Date "2022.11.02"]
[WhiteClock "0:00:12"]
[BlackClock "0:00:10"]

1. d4 {[%clk 0:03:00]}  d6 {[%clk 0:02:58]} 2. c4 {[%clk 0:02:58]}  e5 {[%clk 0:02:58]} 3. Nf3 {[%clk 0:02:59]}  exd4 {[%clk 0:02:58]} 4. Nxd4 {[%clk 0:02:59]}  g6 {[%clk 0:02:59]} 5. Nc3 {[%clk 0:02:58]}  Bg7 {[%clk 0:02:59]} 6. g3 {[%clk 0:02:55]}  Ne7 {[%clk 0:03:00]} 7. Bg2 {[%clk 0:02:54]}  O-O {[%clk 0:03:01]} 8. O-O {[%clk 0:02:55]}  Nd7 {[%clk 0:03:01]} 9. e3 {[%clk 0:02:34]}  Ne5 {[%clk 0:02:42]} 10. b3 {[%clk 0:02:32]}  h5 {[%clk 0:02:36]} 11. Bb2 {[%clk 0:02:29]}  h4 {[%clk 0:02:35]} 12. Qd2 {[%clk 0:02:22]}  hxg3 {[%clk 0:02:32]} 13. hxg3 {[%clk 0:02:20]}  c6 {[%clk 0:02:20]} 14. Nf3 {[%clk 0:02:16]}  Bg4 {[%clk 0:01:59]} 15. Nxe5 {[%clk 0:02:11]}  dxe5 {[%clk 0:02:00]} 16. Qc2 {[%clk 0:01:58]}  Qc7 {[%clk 0:01:44]} 17. f3 {[%clk 0:01:56]}  Be6 {[%clk 0:01:41]} 18. Rad1 {[%clk 0:01:54]}  Nf5 {[%clk 0:01:38]} 19. Qf2 {[%clk 0:01:46]}  Qb6 {[%clk 0:01:33]} 20. Rfe1 {[%clk 0:01:41]}  Bh6 {[%clk 0:01:27]} 21. f4 {[%clk 0:01:22]}  Rfd8 {[%clk 0:01:13]} 22. Rxd8+ {[%clk 0:01:17]}  Rxd8 {[%clk 0:01:12]} 23. Ne4 {[%clk 0:01:18]}  exf4 {[%clk 0:00:53]} 24. gxf4 {[%clk 0:01:12]}  Bc8 {[%clk 0:00:22]} 25. Nf6+ {[%clk 0:01:05]}  Kf8 {[%clk 0:00:21]} 26. Nh7+ {[%clk 0:01:02]}  Kg8 {[%clk 0:00:21]} 27. Nf6+ {[%clk 0:01:02]}  Kf8 {[%clk 0:00:22]} 28. Nh7+ {[%clk 0:00:25]}  Ke8 {[%clk 0:00:22]} 29. Nf6+ {[%clk 0:00:25]}  Ke7 {[%clk 0:00:22]} 30. Ng4 {[%clk 0:00:24]}  Bg7 {[%clk 0:00:14]} 31. Bxg7 {[%clk 0:00:24]}  Nxg7 {[%clk 0:00:15]} 32. Qb2 {[%clk 0:00:25]}  Kf8 {[%clk 0:00:10]} 33. Ne5 {[%clk 0:00:20]}  Qa5 {[%clk 0:00:06]} 34. Qf2 {[%clk 0:00:18]}  Qd2 {[%clk 0:00:05]} 35. Re2 {[%clk 0:00:18]}  Qd6 {[%clk 0:00:04]} 36. Nf3 {[%clk 0:00:16]}  Nf5 {[%clk 0:00:04]} 37. Rd2 {[%clk 0:00:16]}  Qc7 {[%clk 0:00:04]} 38. Rxd8+ {[%clk 0:00:14]}  Qxd8 {[%clk 0:00:05]} 39. e4 {[%clk 0:00:14]}  Ng7 {[%clk 0:00:04]} 40. Qd2 {[%clk 0:00:13]}  Qxd2 {[%clk 0:00:04]} 41. Nxd2 {[%clk 0:00:14]}  Nh5 {[%clk 0:00:04]} 42. f5 {[%clk 0:00:10]}  gxf5 {[%clk 0:00:05]} 43. exf5 {[%clk 0:00:11]}  Bxf5 {[%clk 0:00:06]} 44. Nf3 {[%clk 0:00:11]}  Nf4 {[%clk 0:00:06]} 45. Bf1 {[%clk 0:00:11]}  Be4 {[%clk 0:00:05]} 46. Kf2 {[%clk 0:00:11]}  Bxf3 {[%clk 0:00:05]} 47. Kxf3 {[%clk 0:00:12]}  Ne6 {[%clk 0:00:06]} 48. Ke4 {[%clk 0:00:12]}  Ke7 {[%clk 0:00:06]} 49. b4 {[%clk 0:00:12]}  c5 {[%clk 0:00:05]} 50. a3 {[%clk 0:00:11]}  Kd6 {[%clk 0:00:04]} 51. Bh3 {[%clk 0:00:11]}  b6 {[%clk 0:00:04]} 52. Bf1 {[%clk 0:00:10]}  Nd4 {[%clk 0:00:04]} 53. Bd3 {[%clk 0:00:09]}  Nc6 {[%clk 0:00:04]} 54. b5 {[%clk 0:00:08]}  Nd4 {[%clk 0:00:04]} 55. Bb1 {[%clk 0:00:08]}  Ke6 {[%clk 0:00:04]} 56. Bd3 {[%clk 0:00:07]}  f5+ {[%clk 0:00:04]} 57. Kf4 {[%clk 0:00:08]}  Kf6 {[%clk 0:00:05]} 58. Bb1 {[%clk 0:00:08]}  Ne6+ {[%clk 0:00:05]} 59. Kf3 {[%clk 0:00:09]}  Ke5 {[%clk 0:00:06]} 60. Ke3 {[%clk 0:00:09]}  Nd4 {[%clk 0:00:06]} 61. Kd3 {[%clk 0:00:08]}  Kf4 {[%clk 0:00:06]} 62. Ba2 {[%clk 0:00:08]}  Kg3 {[%clk 0:00:05]} 63. Bb1 {[%clk 0:00:08]}  f4 {[%clk 0:00:05]} 64. Kd2 {[%clk 0:00:08]}  f3 {[%clk 0:00:06]} 65. Ke3 {[%clk 0:00:08]}  f2 {[%clk 0:00:05]} 66. Bd3 {[%clk 0:00:09]}  Nc2+ {[%clk 0:00:05]} 67. Ke4 {[%clk 0:00:09]}  Nxa3 {[%clk 0:00:06]} 68. Kd5 {[%clk 0:00:09]}  Kg2 {[%clk 0:00:05]} 69. Kc6 {[%clk 0:00:08]}  f1=Q {[%clk 0:00:06]} 70. Bxf1+ {[%clk 0:00:09]}  Kxf1 {[%clk 0:00:07]} 71. Kb7 {[%clk 0:00:09]}  Nxc4 {[%clk 0:00:07]} 72. Kxa7 {[%clk 0:00:10]}  Ke2 {[%clk 0:00:08]} 73. Kb7 {[%clk 0:00:11]}  Kd3 {[%clk 0:00:08]} 74. Kc6 {[%clk 0:00:11]}  Kd4 {[%clk 0:00:09]} 75. Kd7 {[%clk 0:00:11]}  Kc3 {[%clk 0:00:09]} 76. Kc6 {[%clk 0:00:12]}  Kb4 {[%clk 0:00:10]} 0-1


[Site "https://www.chess.com"]

[Event "Titled Tuesday Blitz November 01 Late 2022"]
[White "Putnam, Liam"]
[Black "Dzierzak, Radoslaw"]
[WhiteFideId "30938279"]
[BlackFideId "1161407"]
[WhiteElo "2082"]
[BlackElo "2111"]
[Result "1-0"]
[Round "03"]
[TimeControl "180+1"]
[Date "2022.11.02"]
[WhiteClock "0:01:13"]
[BlackClock "0:00:02"]

1. d4 {[%clk 0:03:00]}  Nf6 {[%clk 0:02:59]} 2. Nc3 {[%clk 0:03:01]}  d5 {[%clk 0:02:58]} 3. Bf4 {[%clk 0:03:02]}  c6 {[%clk 0:02:53]} 4. e3 {[%clk 0:03:02]}  Bf5 {[%clk 0:02:51]} 5. Nf3 {[%clk 0:02:58]}  h6 {[%clk 0:02:50]} 6. Ne5 {[%clk 0:02:58]}  Nbd7 {[%clk 0:02:49]} 7. g4 {[%clk 0:02:57]}  Bh7 {[%clk 0:02:49]} 8. h4 {[%clk 0:02:54]}  e6 {[%clk 0:02:36]} 9. g5 {[%clk 0:02:53]}  Ne4 {[%clk 0:02:28]} 10. g6 {[%clk 0:02:52]}  Nxe5 {[%clk 0:02:09]} 11. gxh7 {[%clk 0:02:39]}  Nxc3 {[%clk 0:02:03]} 12. bxc3 {[%clk 0:02:38]}  Ng6 {[%clk 0:01:58]} 13. Bg3 {[%clk 0:02:36]}  Bd6 {[%clk 0:01:58]} 14. h5 {[%clk 0:02:32]}  Nf8 {[%clk 0:01:45]} 15. Qg4 {[%clk 0:02:30]}  Rxh7 {[%clk 0:01:33]} 16. Rb1 {[%clk 0:02:20]}  Bxg3 {[%clk 0:01:27]} 17. Qxg3 {[%clk 0:02:19]}  Qb8 {[%clk 0:01:27]} 18. Qg4 {[%clk 0:02:14]}  f5 {[%clk 0:01:17]} 19. Qg2 {[%clk 0:02:07]}  b6 {[%clk 0:01:12]} 20. c4 {[%clk 0:02:06]}  Qd8 {[%clk 0:01:07]} 21. Bd3 {[%clk 0:01:59]}  Qg5 {[%clk 0:01:05]} 22. Qf3 {[%clk 0:01:56]}  Nd7 {[%clk 0:01:02]} 23. cxd5 {[%clk 0:01:56]}  cxd5 {[%clk 0:00:59]} 24. c4 {[%clk 0:01:56]}  Nf6 {[%clk 0:00:54]} 25. cxd5 {[%clk 0:01:51]}  Nxd5 {[%clk 0:00:51]} 26. e4 {[%clk 0:01:38]}  Nf4 {[%clk 0:00:47]} 27. Bb5+ {[%clk 0:01:35]}  Kf7 {[%clk 0:00:41]} 28. exf5 {[%clk 0:01:24]}  Rd8 {[%clk 0:00:21]} 29. fxe6+ {[%clk 0:01:21]}  Kxe6 {[%clk 0:00:21]} 30. Qe4+ {[%clk 0:01:21]}  Kf6 {[%clk 0:00:17]} 31. Qxh7 {[%clk 0:01:17]}  Ng2+ {[%clk 0:00:13]} 32. Kf1 {[%clk 0:01:16]}  Nf4 {[%clk 0:00:11]} 33. Rg1 {[%clk 0:01:13]}  Qxh5 {[%clk 0:00:02]} 34. Qxg7+ {[%clk 0:01:13]}  Kf5 {[%clk 0:00:02]} 35. Qe5# {[%clk 0:01:13]} 1-0


[Site "https://www.chess.com"]

[Event "Titled Tuesday Blitz November 01 Late 2022"]
[White "Ramirez, Alejandro"]
[Black "Araujo Sanchez, Josue"]
[WhiteFideId "6500617"]
[BlackFideId "6416896"]
[WhiteElo "2694"]
[BlackElo "2370"]
[Result "1-0"]
[Round "03"]
[TimeControl "180+1"]
[Date "2022.11.02"]
[WhiteClock "0:01:05"]
[BlackClock "0:00:50"]

1. Nf3 {[%clk 0:03:00]}  d5 {[%clk 0:02:42]} 2. c4 {[%clk 0:03:01]}  c6 {[%clk 0:02:41]} 3. d4 {[%clk 0:02:54]}  Nf6 {[%clk 0:02:41]} 4. Qc2 {[%clk 0:02:55]}  e6 {[%clk 0:02:40]} 5. Bg5 {[%clk 0:02:49]}  Be7 {[%clk 0:02:40]} 6. e3 {[%clk 0:02:49]}  O-O {[%clk 0:02:40]} 7. Nc3 {[%clk 0:02:49]}  Nbd7 {[%clk 0:02:39]} 8. Rd1 {[%clk 0:02:50]}  b6 {[%clk 0:02:38]} 9. Bd3 {[%clk 0:02:47]}  Ba6 {[%clk 0:02:36]} 10. b3 {[%clk 0:02:40]}  Rc8 {[%clk 0:02:31]} 11. O-O {[%clk 0:02:37]}  h6 {[%clk 0:02:31]} 12. Bh4 {[%clk 0:02:31]}  b5 {[%clk 0:02:23]} 13. c5 {[%clk 0:02:26]}  Bb7 {[%clk 0:02:06]} 14. b4 {[%clk 0:02:26]}  a5 {[%clk 0:02:00]} 15. a4 {[%clk 0:02:10]}  axb4 {[%clk 0:01:58]} 16. Na2 {[%clk 0:02:10]}  bxa4 {[%clk 0:01:55]} 17. Qxa4 {[%clk 0:02:02]}  Ra8 {[%clk 0:01:53]} 18. Qxb4 {[%clk 0:02:02]}  Ba6 {[%clk 0:01:48]} 19. Nc1 {[%clk 0:01:55]}  Ne4 {[%clk 0:01:40]} 20. Bxe7 {[%clk 0:01:48]}  Qxe7 {[%clk 0:01:39]} 21. Bxa6 {[%clk 0:01:29]}  Rxa6 {[%clk 0:01:38]} 22. Qb7 {[%clk 0:01:30]}  Rfa8 {[%clk 0:01:37]} 23. Ne5 {[%clk 0:01:30]}  R8a7 {[%clk 0:01:28]} 24. Qxa7 {[%clk 0:01:19]}  Rxa7 {[%clk 0:01:21]} 25. Nxc6 {[%clk 0:01:20]}  Qe8 {[%clk 0:01:21]} 26. Nxa7 {[%clk 0:01:21]}  Qb8 {[%clk 0:01:07]} 27. Nc6 {[%clk 0:01:20]}  Qb5 {[%clk 0:01:01]} 28. Ne7+ {[%clk 0:01:11]}  Kf8 {[%clk 0:01:01]} 29. Nc8 {[%clk 0:01:12]}  Qa6 {[%clk 0:00:53]} 30. Nd6 {[%clk 0:01:10]}  Nxd6 {[%clk 0:00:54]} 31. cxd6 {[%clk 0:01:11]}  Qxd6 {[%clk 0:00:54]} 32. Nd3 {[%clk 0:01:12]}  g5 {[%clk 0:00:53]} 33. Ra1 {[%clk 0:01:09]}  Kg7 {[%clk 0:00:53]} 34. Ra7 {[%clk 0:01:06]}  Kg6 {[%clk 0:00:50]} 35. Rxd7 {[%clk 0:01:05]} 1-0


[Site "https://www.chess.com"]